fUST/lending_fUST_20250715
["ID","MTS","AMOUNT","RATE_DAILY","PERIOD"]
[372109724,1752523853480,-513.51,0.00018082,2]
[372109725,1752523853489,-1752.1,0.00018082,2]
[372109727,1752523853499,-460.0,0.00018082,2]
[372109729,1752523853508,-460.0,0.00018082,2]
[372109731,1752523853517,-460.0,0.00018082,2]
[372109733,1752523853527,-489.86,0.00018082,2]
[372109735,1752523853536,-460.0,0.00018082,2]
[372109737,1752523853545,-460.0,0.00018082,2]
[372109739,1752523853555,-460.0,0.00018082,2]
[372109741,1752523853564,-701.36,0.00018082,2]
[372109743,1752523853573,-460.0,0.00018082,2]
[372109745,1752523853583,-460.0,0.00018082,2]
[372109747,1752523853592,-460.0,0.00018082,2]
[372109749,1752523853602,-460.0,0.00018082,2]
[372109751,1752523853612,-1583.58,0.00018082,2]
[372109753,1752523853622,-822.66,0.00018082,2]
[372109755,1752523853632,-460.0,0.00018082,2]
[372109757,1752523853641,-634.84,0.00018082,2]
[372109759,1752523853650,-779.7,0.00018082,2]
[372109761,1752523853660,-347.84,0.00018082,2]
[372109763,1752523853669,-519.83,0.00018082,2]
[372109765,1752523853678,-460.0,0.00018082,2]
[372109767,1752523853688,-500.0,0.00018087,2]
[372109769,1752523853697,-151.0298654,0.00018087,2]
[372109771,1752523853706,-500.0,0.00018087,2]
[372109773,1752523853715,-158.03020304,0.00018087,2]
[372109775,1752523853725,-500.0,0.00018087,2]
[372109777,1752523853734,-500.0,0.00018087,2]
[372109779,1752523853743,-500.0,0.00018094,2]
[372109780,1752523853752,-501.04320037,0.00018112,2]
[372109782,1752523853762,-158.44646998,0.00018112,2]
[372109784,1752523853771,-151.0,0.00018116,2]
[372109785,1752523853780,-160.0,0.00018133,2]
[372109787,1752523853789,-151.0,0.00018144,2]
[372109788,1752523853798,-151.0,0.00018144,2]
[372109790,1752523853808,-389.0,0.00018144,2]
[372109792,1752523853818,-389.0,0.00018169,2]
[372109793,1752523853827,-150.05,0.00018175,2]
[372109795,1752523853837,-647.0,0.00018175,2]
[372109796,1752523853846,-2154.0,0.00018175,2]
[372109798,1752523853856,-968.0,0.00018175,2]
[372109799,1752523853865,-389.0,0.0001818,2]
[372109801,1752523853875,-156.546169,0.00018189,2]
[372109803,1752523853884,-1718.83272436,0.0001828,2]
[372109804,1752523853894,-4899.4222743,0.00018314,2]
[372109806,1752523853903,-389.0,0.00018322,2]
[372109807,1752523853912,-389.0,0.00018322,2]
[372109809,1752523853921,-482.07672015,0.00018355,2]
[372109810,1752523853930,-5652.61,0.00018355,2]
[372109812,1752523853939,-979.19,0.00018355,2]
[372109814,1752523853948,-766.81,0.00018355,2]
[372109815,1752523853957,-1570.24,0.00018355,2]
[372109817,1752523853966,-1140.82,0.00018355,2]
[372109818,1752523853976,-151.0,0.00018356,2]
[372109820,1752523853985,-151.0,0.00018356,2]
[372109822,1752523853994,-390.351367,0.00018356,2]
[372109823,1752523854004,-390.351367,0.00018356,2]
[372109825,1752523854013,-151.0,0.00018356,2]
[372109827,1752523854023,-460.0,0.00018356,2]
[372109828,1752523854032,-460.0,0.00018356,2]
[372109830,1752523854041,-487.32142017,0.00018356,2]
[372109832,1752523854051,-460.0,0.00018356,2]
[372109833,1752523854060,-460.0,0.00018356,2]
[372109835,1752523854068,-460.0,0.00018356,2]
[372109837,1752523854078,-460.0,0.00018356,2]
[372109838,1752523854087,-151.0,0.00018356,2]
[372109840,1752523854097,-460.0,0.00018356,2]
[372109842,1752523854106,-460.0,0.00018356,2]
[372109843,1752523854115,-460.0,0.00018356,2]
[372109845,1752523854125,-460.0,0.00018356,2]
[372109847,1752523854137,-460.0,0.00018356,2]
[372109849,1752523854147,-488.69,0.00018356,2]
[372109850,1752523854156,-460.0,0.00018356,2]
[372109852,1752523854165,-460.0,0.00018356,2]
[372109854,1752523854175,-460.0,0.00018356,2]
[372109855,1752523854184,-514.19,0.00018356,2]
[372109857,1752523854193,-460.0,0.00018356,2]
[372109858,1752523854203,-557.41,0.00018356,2]
[372109860,1752523854213,-460.0,0.00018356,2]
[372109862,1752523854223,-460.0,0.00018356,2]
[372109864,1752523854233,-460.0,0.00018356,2]
[372109865,1752523854243,-796.36,0.00018356,2]
[372109867,1752523854252,-460.0,0.00018356,2]
[372109869,1752523854261,-841.78,0.00018356,2]
[372109870,1752523854271,-460.0,0.00018356,2]
[372109872,1752523854280,-460.0,0.00018356,2]
[372109874,1752523854289,-460.0,0.00018356,2]
[372109875,1752523854298,-460.0,0.00018356,2]
[372109877,1752523854307,-460.0,0.00018356,2]
[372109879,1752523854317,-752.74,0.00018356,2]
[372109881,1752523854327,-2405.54,0.00018356,2]
[372109882,1752523854336,-508.83,0.00018356,2]
[372109884,1752523854345,-460.0,0.00018356,2]
[372109886,1752523854355,-460.0,0.00018356,2]
[372109887,1752523854365,-936.8,0.00018356,2]
[372109889,1752523854374,-986.06,0.00018356,2]
[372109891,1752523854383,-751.76,0.00018356,2]
[372109892,1752523854392,-1466.15,0.00018356,2]
[372109894,1752523854401,-492.2,0.00018356,2]
[372109896,1752523854411,-460.0,0.00018356,2]
[372109897,1752523854420,-460.0,0.00018356,2]
[372109899,1752523854429,-3285.73,0.00018356,2]
[372109900,1752523854438,-981.45,0.00018356,2]
[372109902,1752523854448,-460.0,0.00018356,2]
[372109903,1752523854457,-460.0,0.00018356,2]
[372109905,1752523854466,-968.1,0.00018356,2]
[372109907,1752523854475,-4398.49,0.00018356,2]
[372109908,1752523854484,-4209.19,0.00018356,2]
[372109910,1752523854492,-460.0,0.00018356,2]
[372109911,1752523854502,-460.0,0.00018356,2]
[372109913,1752523854511,-468.4,0.00018356,2]
[372109922,1752523854520,-460.0,0.00018356,2]
[372109924,1752523854635,-481.24,0.00018356,2]
[372109926,1752523854645,-645.53,0.00018356,2]
[372109928,1752523854654,-593.17,0.00018356,2]
[372109929,1752523854664,-460.0,0.00018356,2]
[372109931,1752523854673,-1221.52,0.00018356,2]
[372109932,1752523854682,-224.902329,0.00018356,2]
[372109934,1752523854692,-224.902329,0.00018356,2]
[372109936,1752523854701,-621.62,0.00018356,2]
[372109938,1752523854711,-2631.55,0.00018356,2]
[372109939,1752523854720,-1620.37,0.00018356,2]
[372109941,1752523854730,-460.0,0.00018356,2]
[372109943,1752523854740,-576.25,0.00018356,2]
[372109944,1752523854749,-460.0,0.00018356,2]
[372109946,1752523854759,-460.0,0.00018356,2]
[372109948,1752523854768,-513.51,0.00018356,2]
[372109949,1752523854778,-1752.1,0.00018356,2]
[372109951,1752523854787,-460.0,0.00018356,2]
[372109953,1752523854797,-460.0,0.00018356,2]
[372109954,1752523854806,-460.0,0.00018356,2]
[372109956,1752523854816,-489.86,0.00018356,2]
[372109958,1752523854825,-460.0,0.00018356,2]
[372109960,1752523854834,-460.0,0.00018356,2]
[372109961,1752523854843,-701.36,0.00018356,2]
[372109963,1752523854853,-460.0,0.00018356,2]
[372109965,1752523854862,-460.0,0.00018356,2]
[372109966,1752523854872,-460.0,0.00018356,2]
[372109968,1752523854881,-460.0,0.00018356,2]
[372109970,1752523854889,-1583.58,0.00018356,2]
[372109972,1752523854897,-822.66,0.00018356,2]
[372109973,1752523854906,-460.0,0.00018356,2]
[372109975,1752523854916,-634.84,0.00018356,2]
[372109977,1752523854925,-779.7,0.00018356,2]
[372109978,1752523854934,-519.83,0.00018356,2]
[372109980,1752523854944,-460.0,0.00018356,2]
[372109982,1752523854953,-389.0,0.00018415,2]
[372109983,1752523854963,-151.0,0.00018452,2]
[372109985,1752523854972,-151.0,0.00018452,2]
[372109987,1752523854982,-1000.0,0.000185,2]
[372109989,1752523854991,-2000.0,0.00018517,2]
[372109990,1752523855001,-1986.71853967,0.0001853,2]
[372109992,1752523855010,-389.0,0.00018583,2]
[372109994,1752523855019,-215.0738,0.0001862,2]
[372109995,1752523855028,-5652.61,0.00018629,2]
[372109997,1752523855038,-979.19,0.00018629,2]
[372109999,1752523855047,-766.81,0.00018629,2]
[372110000,1752523855057,-1570.24,0.00018629,2]
[372110002,1752523855066,-1140.82,0.00018629,2]
[372110004,1752523855075,-151.0,0.0001863,2]
[372110005,1752523855084,-151.0,0.0001863,2]
[372110007,1752523855093,-151.0,0.0001863,2]
[372110009,1752523855102,-529.207943,0.0001863,2]
[372110010,1752523855112,-529.207943,0.0001863,2]
[372110012,1752523855122,-151.0,0.0001863,2]
[372110014,1752523855133,-460.0,0.0001863,2]
[372110016,1752523855144,-460.0,0.0001863,2]
[372110017,1752523855153,-460.0,0.0001863,2]
[372110019,1752523855163,-460.0,0.0001863,2]
[372110021,1752523855172,-460.0,0.0001863,2]
[372110022,1752523855182,-460.0,0.0001863,2]
[372110024,1752523855191,-460.0,0.0001863,2]
[372110026,1752523855201,-460.0,0.0001863,2]
[372110027,1752523855211,-460.0,0.0001863,2]
[372110029,1752523855221,-151.0,0.0001863,2]
[372110031,1752523855230,-151.0,0.0001863,2]
[372110032,1752523855240,-151.0,0.0001863,2]
[372110034,1752523855253,-228.54568651,0.0001863,2]
[372110036,1752523855262,-460.0,0.0001863,2]
[372110038,1752523855272,-460.0,0.0001863,2]
[372110039,1752523855281,-193.203456,0.0001863,2]
[372110041,1752523855290,-488.69,0.0001863,2]
[372110043,1752523855300,-193.203456,0.0001863,2]
[372110044,1752523855309,-460.0,0.0001863,2]
[372110046,1752523855318,-460.0,0.0001863,2]
[372110048,1752523855328,-460.0,0.0001863,2]
[372110049,1752523855337,-514.19,0.0001863,2]
[372110051,1752523855346,-460.0,0.0001863,2]
[372110053,1752523855355,-557.41,0.0001863,2]
[372110054,1752523855365,-460.0,0.0001863,2]
[372110056,1752523855374,-460.0,0.0001863,2]
[372110058,1752523855384,-796.36,0.0001863,2]
[372110060,1752523855394,-460.0,0.0001863,2]
[372110061,1752523855403,-841.78,0.0001863,2]
[372110063,1752523855413,-460.0,0.0001863,2]
[372110065,1752523855422,-460.0,0.0001863,2]
[372110066,1752523855431,-460.0,0.0001863,2]
[372110068,1752523855441,-460.0,0.0001863,2]
[372110070,1752523855450,-460.0,0.0001863,2]
[372110072,1752523855459,-752.74,0.0001863,2]
[372110073,1752523855469,-2405.54,0.0001863,2]
[372110075,1752523855479,-508.83,0.0001863,2]
[372110077,1752523855488,-460.0,0.0001863,2]
[372110078,1752523855497,-460.0,0.0001863,2]
[372110080,1752523855507,-936.8,0.0001863,2]
[372110082,1752523855516,-986.06,0.0001863,2]
[372110083,1752523855525,-751.76,0.0001863,2]
[372110085,1752523855535,-1466.15,0.0001863,2]
[372110087,1752523855545,-492.2,0.0001863,2]
[372110088,1752523855555,-460.0,0.0001863,2]
[372110090,1752523855564,-460.0,0.0001863,2]
[372110092,1752523855573,-3285.73,0.0001863,2]
[372110093,1752523855582,-981.45,0.0001863,2]
[372110095,1752523855591,-460.0,0.0001863,2]
[372110097,1752523855600,-460.0,0.0001863,2]
[372110099,1752523855611,-968.1,0.0001863,2]
[372110100,1752523855620,-4398.49,0.0001863,2]
[372110102,1752523855629,-4209.19,0.0001863,2]
[372110104,1752523855639,-487.67,0.0001863,2]
[372110105,1752523855648,-468.4,0.0001863,2]
[372110107,1752523855657,-460.0,0.0001863,2]
[372110109,1752523855667,-481.24,0.0001863,2]
[372110110,1752523855676,-645.53,0.0001863,2]
[372110112,1752523855686,-593.17,0.0001863,2]
[372110114,1752523855695,-460.0,0.0001863,2]
[372110115,1752523855705,-1221.52,0.0001863,2]
[372110117,1752523855715,-621.62,0.0001863,2]
[372110119,1752523855724,-2631.55,0.0001863,2]
[372110121,1752523855733,-1620.37,0.0001863,2]
[372110122,1752523855743,-460.0,0.0001863,2]
[372110124,1752523855753,-576.25,0.0001863,2]
[372110126,1752523855763,-460.0,0.0001863,2]
[372110128,1752523855773,-460.0,0.0001863,2]
[372110129,1752523855782,-513.51,0.0001863,2]
[372110131,1752523855791,-1752.1,0.0001863,2]
[372110133,1752523855801,-460.0,0.0001863,2]
[372110134,1752523855810,-460.0,0.0001863,2]
[372110136,1752523855820,-335.1285609,0.0001863,2]
[372110138,1752523855829,-489.86,0.0001863,2]
[372110139,1752523855839,-460.0,0.0001863,2]
[372110141,1752523855849,-460.0,0.0001863,2]
[372110143,1752523855859,-701.36,0.0001863,2]
[372110144,1752523855868,-460.0,0.0001863,2]
[372110146,1752523855877,-460.0,0.0001863,2]
[372110148,1752523855886,-460.0,0.0001863,2]
[372110149,1752523855895,-1583.58,0.0001863,2]
[372110151,1752523855905,-822.66,0.0001863,2]
[372110153,1752523855914,-460.0,0.0001863,2]
[372110155,1752523855923,-634.84,0.0001863,2]
[372110156,1752523855932,-779.7,0.0001863,2]
[372110158,1752523855941,-519.83,0.0001863,2]
[372110160,1752523855951,-460.0,0.0001863,2]
[372110161,1752523855960,-307.28145707,0.00018635,2]
[372110163,1752523855969,-379.92,0.00018656,2]
[372110165,1752523855978,-4899.4222743,0.00018659,2]
[372110166,1752523855987,-457.320865,0.0001866,2]
[372110168,1752523855997,-457.320865,0.0001866,2]
[372110170,1752523856006,-260.0,0.00018681,2]
[372110172,1752523856015,-389.0,0.00018711,2]
[372110173,1752523856025,-587.0,0.00018803,2]
[372110175,1752523856034,-2351.0,0.00018811,2]
[372110177,1752523856043,-1000.0,0.00018818,5]
[372110179,1752523856053,-5652.61,0.00018903,2]
[372110180,1752523856062,-979.19,0.00018903,2]
[372110182,1752523856071,-766.81,0.00018903,2]
[372110184,1752523856080,-1570.24,0.00018903,2]
[372110185,1752523856090,-1140.82,0.00018903,2]
[372110187,1752523856099,-460.0,0.00018904,2]
[372110189,1752523856109,-151.0,0.00018904,2]
[372110191,1752523856118,-460.0,0.00018904,2]
[372110192,1752523856127,-151.0,0.00018904,2]
[372110194,1752523856141,-504.68237709,0.00018904,2]
[372110196,1752523856150,-207.87178,0.00018904,2]
[372110198,1752523856160,-207.87178,0.00018904,2]
[372110200,1752523856169,-460.0,0.00018904,2]
[372110201,1752523856179,-151.0,0.00018904,2]
[372110203,1752523856190,-151.0,0.00018904,2]
[372110205,1752523856199,-460.0,0.00018904,2]
[372110207,1752523856209,-460.0,0.00018904,2]
[372110208,1752523856218,-174.27303,0.00018904,2]
[372110210,1752523856227,-174.27303,0.00018904,2]
[372110212,1752523856236,-460.0,0.00018904,2]
[372110214,1752523856245,-460.0,0.00018904,2]
[372110215,1752523856254,-151.0,0.00018904,2]
[372110217,1752523856263,-261.150881,0.00018904,2]
[372110219,1752523856272,-460.0,0.00018904,2]
[372110221,1752523856282,-460.0,0.00018904,2]
[372110222,1752523856291,-488.69,0.00018904,2]
[372110224,1752523856301,-460.0,0.00018904,2]
[372110226,1752523856310,-460.0,0.00018904,2]
[372110228,1752523856319,-460.0,0.00018904,2]
[372110229,1752523856328,-514.19,0.00018904,2]
[372110231,1752523856337,-460.0,0.00018904,2]
[372110233,1752523856346,-557.41,0.00018904,2]
[372110235,1752523856355,-216.94396209,0.00018904,2]
[372110236,1752523856367,-460.0,0.00018904,2]
[372110238,1752523856376,-796.36,0.00018904,2]
[372110240,1752523856385,-460.0,0.00018904,2]
[372110241,1752523856395,-841.78,0.00018904,2]
[372110243,1752523856404,-460.0,0.00018904,2]
[372110245,1752523856413,-460.0,0.00018904,2]
[372110247,1752523856423,-460.0,0.00018904,2]
[372110248,1752523856432,-460.0,0.00018904,2]
[372110250,1752523856441,-752.74,0.00018904,2]
[372110252,1752523856450,-2405.54,0.00018904,2]
[372110254,1752523856459,-508.83,0.00018904,2]
[372110255,1752523856468,-460.0,0.00018904,2]
[372110257,1752523856478,-460.0,0.00018904,2]
[372110259,1752523856487,-936.8,0.00018904,2]
[372110261,1752523856496,-986.06,0.00018904,2]
[372110263,1752523856505,-751.76,0.00018904,2]
[372110264,1752523856514,-1466.15,0.00018904,2]
[372110266,1752523856523,-492.2,0.00018904,2]
[372110268,1752523856532,-536.17390637,0.00018904,2]
[372110270,1752523856542,-3285.73,0.00018904,2]
[372110271,1752523856551,-981.45,0.00018904,2]
[372110273,1752523856560,-460.0,0.00018904,2]
[372110275,1752523856570,-968.1,0.00018904,2]
[372110277,1752523856579,-4398.49,0.00018904,2]
[372110278,1752523856588,-4209.19,0.00018904,2]
[372110280,1752523856598,-468.4,0.00018904,2]
[372110282,1752523856607,-460.0,0.00018904,2]
[372110284,1752523856617,-481.24,0.00018904,2]
[372110293,1752523856718,-645.53,0.00018904,2]
[372110294,1752523856728,-593.17,0.00018904,2]
[372110296,1752523856737,-460.0,0.00018904,2]
[372110298,1752523856747,-1221.52,0.00018904,2]
[372110300,1752523856756,-621.62,0.00018904,2]
[372110301,1752523856765,-2631.55,0.00018904,2]
[372110303,1752523856774,-1620.37,0.00018904,2]
[372110305,1752523856784,-460.0,0.00018904,2]
[372110307,1752523856794,-460.0,0.00018904,2]
[372110309,1752523856803,-576.25,0.00018904,2]
[372110310,1752523856812,-460.0,0.00018904,2]
[372110312,1752523856821,-513.51,0.00018904,2]
[372110314,1752523856830,-1752.1,0.00018904,2]
[372110316,1752523856839,-460.0,0.00018904,2]
[372110317,1752523856848,-460.0,0.00018904,2]
[372110319,1752523856858,-489.86,0.00018904,2]
[372110321,1752523856867,-460.0,0.00018904,2]
[372110323,1752523856877,-263.0,0.00018904,2]
[372110324,1752523856886,-701.36,0.00018904,2]
[372110326,1752523856895,-460.0,0.00018904,2]
[372110328,1752523856904,-460.0,0.00018904,2]
[372110330,1752523856913,-1583.58,0.00018904,2]
[372110332,1752523856922,-822.66,0.00018904,2]
[372110333,1752523856932,-460.0,0.00018904,2]
[372110335,1752523856941,-634.84,0.00018904,2]
[372110337,1752523856951,-779.7,0.00018904,2]
[372110338,1752523856960,-519.83,0.00018904,2]
[372110340,1752523856970,-460.0,0.00018904,2]
[372110342,1752523856979,-156.546169,0.00018941,7]
[372110344,1752523856988,-612.417574,0.00018942,2]
[372110346,1752523856998,-180.03240583,0.00018944,2]
[372110347,1752523857007,-400.0,0.00018993,2]
[372110349,1752523857016,-151.0,0.00019,2]
[372110351,1752523857025,-1000.0,0.00019,2]
[372110353,1752523857035,-4899.4222743,0.00019003,2]
[372110354,1752523857044,-2570.17636328,0.00019032,2]
[372110356,1752523857053,-389.0,0.00019079,2]
[372110358,1752523857062,-151.0,0.000191,2]
[372110360,1752523857072,-151.0,0.000191,2]
[372110362,1752523857082,-600.0,0.00019168,2]
[372110363,1752523857091,-151.0,0.00019173,2]
[372110365,1752523857100,-151.0,0.00019173,2]
[372110367,1752523857109,-5652.61,0.00019177,2]
[372110369,1752523857119,-979.19,0.00019177,2]
[372110370,1752523857128,-766.81,0.00019177,2]
[372110372,1752523857141,-1570.24,0.00019177,2]
[372110374,1752523857151,-1140.82,0.00019177,2]
[372110376,1752523857161,-219.878768,0.00019178,2]
[372110377,1752523857170,-219.878768,0.00019178,2]
[372110379,1752523857184,-262.887288,0.00019178,2]
[372110381,1752523857193,-151.0,0.00019178,2]
[372110383,1752523857203,-390.351367,0.00019178,2]
[372110384,1752523857214,-390.351367,0.00019178,2]
[372110386,1752523857225,-151.0,0.00019178,2]
[372110389,1752523857237,-289.33184051,0.00019178,2]
[372110390,1752523857247,-151.0,0.00019178,2]
[372110391,1752523857256,-151.0,0.00019178,2]
[372110392,1752523857265,-460.0,0.00019178,2]
[372110393,1752523857274,-151.0,0.00019178,2]
[372110394,1752523857283,-151.0,0.00019178,2]
[372110395,1752523857292,-207.87178,0.00019178,2]
[372110396,1752523857301,-207.87178,0.00019178,2]
[372110397,1752523857310,-207.87178,0.00019178,2]
[372110398,1752523857319,-207.87178,0.00019178,2]
[372110399,1752523857328,-460.0,0.00019178,2]
[372110400,1752523857337,-151.0,0.00019178,2]
[372110401,1752523857346,-151.0,0.00019178,2]
[372110402,1752523857356,-151.0,0.00019178,2]
[372110403,1752523857365,-151.0,0.00019178,2]
[372110404,1752523857374,-460.0,0.00019178,2]
[372110405,1752523857383,-460.0,0.00019178,2]
[372110406,1752523857392,-174.27303,0.00019178,2]
[372110407,1752523857401,-174.27303,0.00019178,2]
[372110408,1752523857410,-174.27303,0.00019178,2]
[372110409,1752523857419,-174.27303,0.00019178,2]
[372110410,1752523857428,-339.16,0.00019178,2]
[372110411,1752523857437,-151.0,0.00019178,2]
[372110412,1752523857446,-151.0,0.00019178,2]
[372110413,1752523857455,-151.0,0.00019178,2]
[372110414,1752523857464,-151.0,0.00019178,2]
[372110415,1752523857473,-460.0,0.00019178,2]
[372110416,1752523857482,-338.61259214,0.00019178,2]
[372110417,1752523857491,-500.0,0.00019178,2]
[372110418,1752523857500,-460.0,0.00019178,2]
[372110419,1752523857509,-151.0,0.00019178,2]
[372110420,1752523857518,-151.0,0.00019178,2]
[372110421,1752523857527,-151.0,0.00019178,2]
[372110422,1752523857537,-208.944323,0.00019178,2]
[372110423,1752523857545,-151.0,0.00019178,2]
[372110424,1752523857555,-151.0,0.00019178,2]
[372110425,1752523857563,-460.0,0.00019178,2]
[372110426,1752523857572,-460.0,0.00019178,2]
[372110427,1752523857581,-488.69,0.00019178,2]
[372110428,1752523857590,-193.203456,0.00019178,2]
[372110429,1752523857599,-193.203456,0.00019178,2]
[372110430,1752523857608,-193.203456,0.00019178,2]
[372110431,1752523857617,-193.203456,0.00019178,2]
[372110432,1752523857626,-460.0,0.00019178,2]
[372110433,1752523857635,-283.335264,0.00019178,2]
[372110434,1752523857644,-283.335264,0.00019178,2]
[372110435,1752523857653,-431.226401,0.00019178,2]
[372110436,1752523857661,-460.0,0.00019178,2]
[372110437,1752523857670,-514.19,0.00019178,2]
[372110438,1752523857679,-460.0,0.00019178,2]
[372110439,1752523857688,-557.41,0.00019178,2]
[372110440,1752523857698,-460.0,0.00019178,2]
[372110441,1752523857707,-796.36,0.00019178,2]
[372110442,1752523857717,-460.0,0.00019178,2]
[372110443,1752523857726,-841.78,0.00019178,2]
[372110444,1752523857735,-460.0,0.00019178,2]
[372110445,1752523857745,-179.99235221,0.00019178,2]
[372110446,1752523857754,-460.0,0.00019178,2]
[372110447,1752523857763,-460.0,0.00019178,2]
[372110448,1752523857772,-752.74,0.00019178,2]
[372110449,1752523857781,-457.320865,0.00019178,2]
[372110450,1752523857791,-457.320865,0.00019178,2]
[372110451,1752523857800,-457.320865,0.00019178,2]
[372110452,1752523857810,-457.320865,0.00019178,2]
[372110453,1752523857819,-2405.54,0.00019178,2]
[372110454,1752523857828,-508.83,0.00019178,2]
[372110455,1752523857839,-460.0,0.00019178,2]
[372110456,1752523857848,-460.0,0.00019178,2]
[372110457,1752523857859,-936.8,0.00019178,2]
[372110458,1752523857868,-986.06,0.00019178,2]
[372110459,1752523857877,-751.76,0.00019178,2]
[372110460,1752523857887,-1466.15,0.00019178,2]
[372110462,1752523857897,-492.2,0.00019178,2]
[372110463,1752523857906,-3285.73,0.00019178,2]
[372110464,1752523857914,-981.45,0.00019178,2]
[372110465,1752523857923,-460.0,0.00019178,2]
[372110467,1752523857932,-968.1,0.00019178,2]
[372110468,1752523857941,-4398.49,0.00019178,2]
[372110469,1752523857950,-4209.19,0.00019178,2]
[372110471,1752523857960,-468.4,0.00019178,2]
[372110473,1752523857969,-460.0,0.00019178,2]
[372110475,1752523857978,-481.24,0.00019178,2]
[372110477,1752523857987,-645.53,0.00019178,2]
[372110480,1752523857997,-593.17,0.00019178,2]
[372110482,1752523858007,-460.0,0.00019178,2]
[372110483,1752523858015,-1221.52,0.00019178,2]
[372110485,1752523858025,-224.902329,0.00019178,2]
[372110487,1752523858035,-224.902329,0.00019178,2]
[372110490,1752523858044,-224.902329,0.00019178,2]
[372110491,1752523858053,-224.902329,0.00019178,2]
[372110493,1752523858062,-621.62,0.00019178,2]
[372110495,1752523858071,-2631.55,0.00019178,2]
[372110498,1752523858081,-1620.37,0.00019178,2]
[372110500,1752523858090,-460.0,0.00019178,2]
[372110501,1752523858099,-460.0,0.00019178,2]
[372110503,1752523858110,-576.25,0.00019178,2]
[372110506,1752523858120,-460.0,0.00019178,2]
[372110507,1752523858129,-513.51,0.00019178,2]
[372110510,1752523858143,-1752.1,0.00019178,2]
[372110511,1752523858153,-460.0,0.00019178,2]
[372110513,1752523858162,-460.0,0.00019178,2]
[372110515,1752523858172,-489.86,0.00019178,2]
[372110517,1752523858182,-460.0,0.00019178,2]
[372110519,1752523858192,-701.36,0.00019178,2]
[372110521,1752523858201,-460.0,0.00019178,2]
[372110524,1752523858213,-460.0,0.00019178,2]
[372110525,1752523858222,-1583.58,0.00019178,2]
[372110527,1752523858232,-822.66,0.00019178,2]
[372110529,1752523858241,-460.0,0.00019178,2]
[372110532,1752523858251,-634.84,0.00019178,2]
[372110534,1752523858260,-779.7,0.00019178,2]
[372110536,1752523858269,-519.83,0.00019178,2]
[372110538,1752523858278,-5000.0,0.00019178,2]
[372110539,1752523858287,-5000.0,0.00019178,2]
[372110541,1752523858296,-1404.8455287,0.00019178,2]
[372110543,1752523858305,-666.0,0.00019178,2]
[372110545,1752523858314,-416.135196,0.00019178,2]
[372110547,1752523858323,-3728.45,0.000192,2]
[372110549,1752523858332,-44568.14,0.000192,2]
[372110551,1752523858342,-9139.94,0.000192,2]
[372110553,1752523858352,-360.0,0.00019229,2]
[372110555,1752523858362,-151.0,0.00019264,3]
[372110557,1752523858371,-151.0,0.00019304,2]